bitfinex-derivatives/quotes_ETHF0:USTF0_20251012
["timestamp","ask_amount","ask_price","bid_price","bid_amount"]
[1760233891176,5.97092,3724.0,3723.8,0.00182025]
[1760233891771,9.15853266,3723.9,3722.8,0.48306]
[1760233891978,0.3494,3723.3,3722.8,0.48306]
[1760233892175,0.48299,3723.4,3722.8,0.48306]
[1760233892575,0.48301,3723.3,3722.8,0.48306]
[1760233892874,0.3494,3723.2,3722.8,0.48306]
[1760233893180,0.3494,3723.2,3722.4,0.356]
[1760233893181,0.1386,3723.5,3723.1,0.48302]
[1760233893673,0.3494,3723.4,3723.1,0.48302]
[1760233893873,0.1386,3723.5,3723.1,0.48302]
[1760233894183,0.3494,3723.4,3722.9,0.48305]
[1760233894381,0.3494,3723.3,3722.9,0.48305]
[1760233894679,0.1386,3723.5,3722.9,0.48305]
[1760233894878,0.3345,3723.4,3723.0,0.48304]
[1760233895079,0.3345,3723.4,3723.1,0.82942]
[1760233895576,0.62158,3723.5,3723.1,0.82942]
[1760233895770,0.3345,3723.4,3721.8,1.20797]
[1760233895966,0.1338,3723.0,3722.6,0.48308]
[1760233896175,0.3345,3722.9,3722.6,0.48308]
[1760233896572,0.1338,3723.0,3722.6,0.48308]
[1760233896773,0.3345,3722.9,3722.6,0.48308]
[1760233897878,0.1338,3723.0,3722.6,0.48308]
[1760233898080,0.3345,3722.9,3722.6,0.48308]
[1760233898386,0.1338,3723.0,3722.6,0.48308]
[1760233898779,0.3345,3722.9,3722.6,0.48308]
[1760233900180,0.3345,3722.9,3722.7,0.48307]
[1760233900480,0.1338,3723.0,3722.1,0.3464]
[1760233900682,0.3345,3722.9,3722.1,0.3464]
[1760233900884,0.61685,3723.0,3722.7,0.48308]
[1760233901084,0.3389,3722.9,3722.2,0.3671]
[1760233901282,0.3389,3722.9,3722.3,0.48313]
[1760233901684,0.61685,3723.0,3722.6,0.85019]
[1760233901880,0.61685,3723.0,3722.6,0.48309]
[1760233902080,0.3389,3722.9,3722.6,0.48309]
[1760233902382,0.3389,3722.9,3722.7,0.48307]
[1760233902587,0.61685,3723.0,3722.7,0.48307]
[1760233903289,0.1338,3723.0,3722.7,0.48307]
[1760233903485,0.3389,3722.9,3722.7,0.48307]
[1760233903789,0.1338,3723.0,3722.7,0.48307]
[1760233904087,0.3389,3722.9,3722.7,0.48307]
[1760233904484,0.1338,3723.0,3722.7,0.48307]
[1760233904684,0.3389,3722.9,3722.7,0.48307]
[1760233904881,0.3389,3723.2,3723.1,0.48303]
[1760233905083,0.3389,3723.4,3723.1,0.48302]
[1760233905281,0.3389,3723.4,3722.6,1.20774]
[1760233905483,0.3389,3723.9,3723.5,0.85007]
[1760233905683,0.3389,3723.7,3723.5,0.48297]
[1760233905887,1.03396672,3723.6,3723.5,0.48297]
[1760233906280,0.3389,3723.6,3723.5,0.85007]
[1760233906481,0.00281969,3724.4,3723.9,0.3671]
[1760233906684,0.34171969,3724.4,3724.3,0.3671]
[1760233906880,0.00281969,3724.4,3723.8,0.3671]
[1760233907084,1.03381372,3724.3,3724.2,0.48288]
[1760233907489,0.3389,3724.3,3724.2,0.48288]
[1760233908294,0.00281969,3724.4,3724.3,0.3671]
[1760233909196,0.00281969,3724.4,3724.0,0.4829]
[1760233909400,0.3389,3724.3,3724.0,0.4829]
[1760233909601,0.3389,3724.2,3723.0,0.1336]
[1760233909804,0.3389,3723.9,3723.4,0.48298]
[1760233910102,0.3389,3723.9,3722.5,0.1333]
[1760233910103,0.3389,3723.9,3723.6,0.48295]
[1760233910298,0.3389,3723.9,3723.7,0.3671]
[1760233910493,0.3389,3723.9,3723.7,0.85004]
[1760233910695,3.54130796,3724.3,3724.1,0.48289]
[1760233910696,0.3389,3724.3,3724.1,0.48289]
[1760233910900,0.00281969,3724.4,3724.0,0.4829]
[1760233911100,0.3389,3724.3,3724.0,0.4829]
[1760233911301,0.00281969,3724.4,3724.0,0.4829]
[1760233911496,0.3389,3724.3,3724.0,0.4829]
[1760233911802,0.3389,3723.9,3723.8,0.48293]
[1760233911998,0.3389,3724.3,3724.2,0.48288]
[1760233912204,0.3389,3724.3,3724.2,0.84998]
[1760233912802,0.00281969,3724.4,3724.3,0.3671]
[1760233913104,0.00281969,3724.4,3724.3,5.3671]
[1760233913301,0.3389,3725.4,3725.1,0.48276]
[1760233913501,0.3389,3725.4,3724.4,0.3671]
[1760233913702,0.3389,3725.4,3724.9,0.48279]
[1760233914101,0.62492,3725.5,3724.9,0.48279]
[1760233914297,0.3389,3725.4,3724.9,0.48530232]
[1760233914804,0.4811,3725.0,3724.9,0.00251232]
[1760233916205,0.3389,3725.0,3724.9,0.00251232]
[1760233916606,0.3389,3725.4,3725.0,0.84988]
[1760233916806,0.62743562,3725.5,3725.0,0.48278]
[1760233917110,0.1422,3725.0,3724.9,0.00251232]
[1760233917306,0.4811,3725.0,3724.9,0.00251232]
[1760233917502,0.3389,3725.0,3724.9,0.00251232]
[1760233917805,0.3389,3725.4,3725.0,0.48278]
[1760233918008,0.14471562,3725.5,3725.0,0.48278]
[1760233918205,0.62743562,3725.5,3725.0,0.48278]
[1760233918908,0.3389,3725.4,3725.0,0.48278]
[1760233919104,0.62743562,3725.5,3725.0,0.48278]
[1760233919311,0.3389,3725.4,3725.2,0.48275]
[1760233919608,0.14471562,3725.5,3725.2,0.48275]
[1760233920010,0.3389,3725.4,3725.2,0.48275]
[1760233920205,0.00251562,3725.5,3725.4,0.84983]
[1760233920407,0.1422,3725.0,3724.9,0.00251232]
[1760233920607,0.3389,3725.0,3724.9,0.36961232]
[1760233920804,0.14471562,3725.5,3724.9,0.00251232]
[1760233921111,0.14471562,3725.5,3725.3,0.48273]
[1760233921112,0.48361562,3725.5,3725.3,0.48273]
[1760233921313,0.14471562,3725.5,3725.2,0.3671]
[1760233921505,0.3389,3725.4,3725.2,0.48275]
[1760233922211,0.14471562,3725.5,3725.4,0.3671]
[1760233922212,0.00251562,3725.5,3725.4,0.3671]
[1760233923215,0.14471562,3725.5,3724.9,0.00251232]
[1760233923510,0.14471562,3725.5,3725.1,0.48276]
[1760233923912,0.14471562,3725.5,3724.9,0.48530232]
[1760233924314,0.3389,3725.3,3725.0,0.48278]
[1760233924705,0.3389,3725.1,3725.0,0.48278]
[1760233926009,0.3629,3725.4,3725.2,0.83685]
[1760233926213,0.3629,3725.4,3725.2,0.48275]
[1760233926407,0.3629,3725.4,3725.3,0.3541]
[1760233927103,0.00251562,3725.5,3725.4,0.83683]
[1760233928212,0.00251562,3725.5,3725.4,5.83683]
[1760233928607,0.36541562,3725.5,3725.4,0.48273]
[1760233928915,0.36541562,3725.5,3725.4,0.83683]
[1760233929216,0.3629,3725.4,3725.1,0.3541]
[1760233929415,0.14831562,3725.5,3725.1,0.3541]
[1760233929609,0.3629,3725.4,3725.3,0.48273]
[1760233929814,0.00251562,3725.5,3725.4,0.3541]
[1760233931818,0.00251562,3725.5,3725.4,5.3541]
[1760233932407,0.00251562,3725.5,3725.4,0.3541]
[1760233932813,0.3629,3726.4,3726.3,0.83671]
[1760233933012,0.3629,3726.6,3726.4,0.83669]
[1760233933316,0.3629,3726.9,3726.8,0.48254]
[1760233933516,0.3629,3726.9,3726.8,0.83664]
[1760233934011,0.36616684,3726.9,3726.8,0.83664]
[1760233934212,0.36616684,3726.9,3726.8,0.48254]
[1760233935218,0.36616684,3726.9,3726.8,0.83664]
[1760233935415,0.36616684,3726.9,3725.0,0.35183743]
[1760233935416,0.1458,3726.5,3725.5,0.3541]
[1760233935614,0.1458,3726.0,3725.2,0.48275]
[1760233935821,0.62846,3726.0,3725.5,0.48271]
[1760233936020,0.48271,3725.6,3725.0,0.3541]
[1760233936320,0.1458,3725.5,3725.2,0.48275]
[1760233936523,0.1458,3725.5,3725.0,0.48277]
[1760233936723,0.3629,3725.4,3725.1,0.48276]
[1760233936920,0.62852,3725.5,3725.1,0.48276]
[1760233937121,0.3629,3725.4,3725.1,0.48276]
[1760233937319,0.62852,3725.5,3725.1,0.48276]
[1760233937723,0.3629,3725.4,3725.1,0.48276]
[1760233937926,0.1458,3725.5,3724.5,0.1329]
[1760233938117,0.1458,3725.5,3725.1,0.48276]
[1760233938521,0.3629,3725.4,3724.7,0.3541]
[1760233938726,0.5087,3725.0,3724.4,0.48286]
[1760233938921,0.1458,3724.5,3723.6,0.3541]
[1760233939213,0.1458,3724.5,3723.5,0.1338]
[1760233939214,0.3629,3723.9,3723.1,0.83713]
[1760233939419,0.3629,3723.8,3723.2,0.483]
[1760233939817,0.00347508,3723.8,3723.3,0.3541]
[1760233940019,0.36637508,3723.8,3723.5,0.83706]
[1760233940413,0.00347508,3723.8,3723.6,0.3541]
[1760233941819,0.3629,3723.7,3723.6,0.3541]
[1760233942024,0.00347508,3723.8,3723.5,0.48296]
[1760233942224,0.3629,3723.7,3723.5,0.48296]
[1760233942624,0.3629,3723.7,3723.6,0.3541]
[1760233943023,0.00347508,3723.8,3723.6,0.83705]
[1760233943730,0.36637508,3723.8,3723.6,0.83705]
[1760233945126,0.36637508,3723.8,3723.7,0.3541]
[1760233946326,0.36637508,3723.8,3723.6,0.48295]
[1760233946527,0.3629,3723.7,3723.6,0.48295]
[1760233946835,0.48296,3723.7,3723.2,0.00282299]
[1760233947024,0.00347508,3723.8,3723.2,0.00282299]
[1760233947025,0.5087,3723.5,3723.2,0.00282299]
[1760233947224,0.3629,3723.4,3723.2,0.00282299]
[1760233947535,0.1458,3723.5,3723.2,0.00282299]
[1760233947925,0.3629,3723.3,3723.2,0.00282299]
[1760233950429,5.3629,3723.3,3723.2,0.00282299]
[1760233953836,0.1458,3722.0,3720.0,2.45962286]
[1760233954035,0.1458,3722.0,3721.1,0.83738]
[1760233954036,0.3629,3721.9,3721.1,0.83738]
[1760233954337,0.1458,3722.0,3721.4,0.48324]
[1760233954537,0.3629,3721.9,3721.6,0.48322]
[1760233954740,0.3596,3721.8,3721.4,0.48325]
[1760233955040,0.3596,3721.9,3721.3,0.3541]
[1760233955632,0.4832,3721.8,3721.5,0.48323]
[1760233955828,0.3596,3721.9,3721.3,0.3541]
[1760233956033,0.62898,3722.0,3721.5,0.48323]
[1760233956340,0.48319,3721.9,3721.5,0.48323]
[1760233956538,0.3596,3721.8,3721.5,0.48323]
[1760233956737,0.3596,3721.7,3721.5,0.48323]
[1760233956940,0.48319,3721.9,3721.5,0.48323]
[1760233957133,0.4832,3721.8,3721.5,0.48323]
[1760233957335,0.141,3721.5,3721.4,0.48324]
[1760233957535,0.5006,3721.5,3721.4,0.48324]
[1760233958434,0.1458,3722.0,3720.6,1.20838]
[1760233958435,0.5054,3722.0,3721.9,0.48318]
[1760233958635,0.3596,3721.9,3721.7,0.4832]
[1760233959335,0.3596,3721.9,3721.8,0.48319]
[1760233959733,0.00347508,3723.8,3721.5,0.1338]
[1760233959937,0.3596,3722.8,3722.0,0.1329]
[1760233960139,0.3596,3722.7,3722.3,0.48312]
[1760233960435,0.3596,3722.7,3722.0,0.3517]
[1760233960636,0.141,3723.5,3722.5,0.8348]
[1760233960840,0.3596,3722.8,3722.5,0.8348]
[1760233961041,0.48306,3722.9,3722.5,0.4831]
[1760233961237,0.3383,3722.7,3722.5,0.4831]
[1760233961447,0.3383,3722.6,3722.5,0.4831]
[1760233961638,0.3383,3722.9,3722.8,0.48306]
[1760233961830,0.3383,3723.4,3723.1,0.48302]
[1760233962036,0.00347508,3723.8,3722.0,0.1332]
[1760233962037,0.3383,3723.7,3723.0,0.4907]
[1760233962241,0.00347508,3723.8,3723.7,0.357]
[1760233962438,0.3383,3724.4,3724.3,0.48287]
[1760233962744,0.1337,3725.5,3724.6,0.48283]
[1760233962745,0.3383,3724.9,3724.6,0.48283]
[1760233962941,0.3383,3724.9,3723.7,0.00327435]
[1760233963241,0.472,3724.5,3723.8,0.357]
[1760233963436,0.34151236,3724.5,3724.3,0.83986]
[1760233963638,0.3383,3724.4,3724.3,0.48286]
[1760233964040,0.3383,3724.4,3723.7,0.00327435]
[1760233964237,0.48288,3724.3,3723.7,0.00327435]
[1760233964543,0.3383,3724.2,3723.7,0.00327435]
[1760233964744,0.48288,3724.3,3723.7,0.00327435]
[1760233964941,0.82123,3723.9,3723.7,0.00327435]
[1760233965133,0.48294,3723.8,3723.3,0.483]
[1760233965334,0.3383,3723.7,3723.3,0.483]
[1760233965642,0.1337,3723.5,3722.9,0.84005]
[1760233965834,0.61669,3723.5,3722.9,0.48305]
[1760233966042,0.3383,3723.4,3722.9,0.48305]
[1760233966237,0.61669,3723.5,3722.9,0.48305]
[1760233966741,0.1337,3723.5,3722.5,0.4439]
[1760233967044,0.3383,3723.9,3723.1,0.357]
[1760233967438,0.3383,3723.9,3722.5,0.0869]
[1760233967739,0.1337,3723.5,3723.1,0.48302]
[1760233968041,0.1337,3723.5,3722.6,0.357]
[1760233968042,0.3383,3723.4,3723.0,0.48304]
[1760233968238,0.3383,3723.4,3723.1,0.48302]
[1760233968439,0.3383,3723.3,3722.8,0.48305]
[1760233968643,0.3383,3723.3,3722.9,0.48305]
[1760233968839,0.3383,3723.4,3723.0,0.48303]
[1760233969035,0.3383,3723.4,3722.8,0.48306]
[1760233969241,0.61668,3723.5,3722.1,0.357]
[1760233969242,0.472,3723.0,3722.1,0.357]
[1760233969440,0.472,3723.0,3722.5,0.4831]
[1760233969637,0.3383,3722.9,3722.5,0.4831]
[1760233969942,0.61675,3723.0,3722.5,0.8401]
[1760233970143,0.1337,3723.0,3722.6,0.48308]
[1760233970345,0.48301,3723.3,3722.8,0.84006]
[1760233970541,0.48294,3723.8,3723.3,0.48299]
[1760233970849,0.3383,3723.9,3723.4,0.357]
[1760233971140,0.3383,3724.4,3724.1,0.83989]
[1760233971450,0.3383,3724.4,3724.2,0.48288]
[1760233971642,0.3383,3724.4,3724.2,0.83988]
[1760233972044,0.00321236,3724.5,3724.4,0.83986]
[1760233972246,0.1337,3725.5,3725.1,0.83976]
[1760233972447,9.863,3725.7,3725.5,0.4827]
[1760233972648,9.863,3725.7,3725.6,0.357]
[1760233972843,0.48264,3726.1,3725.6,0.83969]
[1760233973148,0.3383,3725.9,3725.4,0.48272]
[1760233973344,0.13667165,3726.0,3725.4,0.48272]
[1760233973546,0.3383,3725.9,3725.4,0.48272]
[1760233973746,0.13667165,3726.0,3725.5,0.48271]
[1760233973945,0.3383,3725.9,3725.6,0.357]
[1760233974147,0.3383,3725.9,3725.6,0.83969]
[1760233974650,0.00297165,3726.0,3725.9,0.357]
[1760233976445,0.00297165,3726.0,3725.9,5.357]
[1760233976752,0.3383,3727.2,3726.1,0.357]
[1760233977452,0.3383,3727.1,3726.9,0.83953]
[1760233977851,0.3383,3727.0,3726.9,0.48253]
[1760233978756,0.00321926,3727.1,3727.0,0.357]
[1760233980468,0.00321926,3727.1,3727.0,0.4907]
[1760233980673,0.00321926,3727.1,3727.0,0.357]
[1760233981568,0.3383,3726.9,3726.7,0.48255]
[1760233981873,0.3383,3726.9,3726.1,0.357]
[1760233982065,0.3383,3726.9,3726.4,0.48259]
[1760233982262,0.1337,3727.0,3726.6,0.48257]
[1760233982464,0.82084,3726.9,3726.1,0.357]
[1760233982674,0.3383,3726.4,3724.6,0.357]
[1760233982863,0.3383,3725.4,3724.6,0.357]
[1760233983067,0.3383,3725.4,3724.8,0.4828]
[1760233983466,0.82104,3725.4,3724.6,0.48283]
[1760233983668,0.48273,3725.4,3724.7,0.48281]
[1760233983863,0.3383,3725.3,3724.7,0.48282]
[1760233984776,0.82105,3725.3,3724.7,0.48282]
[1760233985275,0.3367,3725.8,3725.2,0.48275]
[1760233985573,0.48267,3725.9,3724.5,1.34042]
[1760233985574,0.3367,3725.9,3725.5,0.48271]
[1760233985773,0.3367,3726.4,3725.8,0.3477]
[1760233985967,0.3367,3726.9,3725.8,0.3477]
[1760233986161,0.00321926,3727.1,3726.5,0.48258]
[1760233986371,0.3367,3726.9,3726.0,0.48265]
[1760233986574,0.3367,3726.4,3725.0,0.1337]
[1760233986767,0.3367,3726.4,3726.0,0.48264]
[1760233986968,0.4842,3727.0,3725.6,0.3477]
[1760233987172,0.3367,3726.9,3726.5,0.48259]
[1760233987380,0.1475,3727.0,3726.6,0.48257]
[1760233987569,0.3367,3726.9,3726.6,0.48257]
[1760233987768,0.1475,3727.0,3726.6,0.48257]
[1760233988073,0.00321926,3727.1,3726.7,0.83025]
[1760233988275,0.3367,3727.0,3726.7,0.48255]
[1760233988578,0.3367,3726.9,3726.7,0.48255]
[1760233988778,0.3367,3726.9,3726.7,0.83025]
[1760233988972,0.00321926,3727.1,3726.7,0.48255]
[1760233989275,0.00321926,3727.1,3726.3,0.3477]
[1760233989276,0.3367,3726.7,3726.3,0.48261]
[1760233989471,0.1475,3727.0,3726.0,0.1332]
[1760233989679,0.1475,3727.0,3726.1,0.3477]
[1760233990071,0.1475,3727.0,3726.5,0.48258]
[1760233990376,0.3367,3726.9,3726.1,0.3477]
[1760233990874,0.33991926,3727.1,3726.2,0.3477]
[1760233991072,0.3367,3727.0,3726.7,0.48255]
[1760233991272,0.4842,3727.0,3726.7,0.48255]
[1760233991472,0.1475,3727.0,3726.5,0.48258]
[1760233991878,0.1475,3727.0,3726.6,0.48257]
[1760233992375,0.3367,3726.9,3726.6,0.48257]
[1760233992777,0.3367,3726.9,3726.6,0.83027]
[1760233992979,0.63003,3727.0,3726.4,0.48259]
[1760233993176,0.3367,3726.9,3726.4,0.48259]
[1760233993380,0.63003,3727.0,3726.4,0.48259]
[1760233993573,0.63003,3727.0,3726.5,0.48258]
[1760233993878,0.3367,3726.9,3726.5,0.48258]
[1760233994078,0.63003,3727.0,3726.5,0.48258]
[1760233994473,0.3367,3726.9,3726.5,0.3477]
[1760233994671,0.00321926,3727.1,3727.0,0.48252]
[1760233994880,0.00321926,3727.1,3727.0,0.83022]
[1760233995379,0.00321926,3727.1,3727.0,5.96392]
[1760233996676,0.00321926,3727.1,3727.0,0.96392]
[1760233996880,0.00321926,3727.1,3727.0,0.83022]
[1760233997276,0.00321926,3727.1,3726.5,0.3477]
[1760233997574,0.3367,3726.8,3726.5,0.48258]
[1760233997769,0.3367,3726.8,3726.5,0.83028]
[1760233997970,0.1475,3727.0,3726.6,0.3477]
[1760233998185,0.00321926,3727.1,3727.0,0.83022]
[1760233998584,0.00321926,3727.1,3727.0,0.96392]
[1760233999485,0.00321926,3727.1,3727.0,0.83022]
[1760234000175,0.00321926,3727.1,3726.5,0.3477]
[1760234000371,0.3367,3726.7,3726.5,0.48258]
[1760234000575,0.3367,3727.0,3726.6,0.83026]
[1760234000782,1.04457916,3726.9,3726.6,0.83026]
[1760234001079,0.3367,3726.9,3726.7,0.48255]
[1760234001276,0.70850422,3726.8,3726.5,0.48258]
[1760234001583,1.04520422,3726.7,3725.9,0.3477]
[1760234001880,0.3367,3726.7,3725.9,0.3477]
[1760234002083,0.7086035,3726.6,3725.9,0.3477]
[1760234002381,0.7086035,3726.5,3725.9,0.3477]
[1760234002582,0.3367,3726.6,3726.4,0.4826]
[1760234002784,1.04582148,3726.5,3726.4,0.4826]
[1760234003373,1.04582148,3726.5,3725.9,0.3477]
[1760234003374,5.85662148,3726.5,3725.9,0.3477]
[1760234003578,0.70912148,3726.4,3725.9,0.3477]
[1760234003776,0.3367,3726.2,3725.5,0.087]
[1760234003981,0.3367,3726.2,3725.6,0.3477]
[1760234004685,0.3367,3726.2,3725.5,0.087]
[1760234004686,0.70840744,3726.1,3726.0,0.83034]
[1760234006378,1.04510744,3726.1,3725.6,0.3477]
[1760234006574,0.3367,3725.9,3725.1,0.3477]
[1760234006779,0.1475,3725.5,3724.6,0.3477]
[1760234006987,0.3367,3725.0,3724.8,0.4828]
[1760234007180,0.3367,3725.1,3724.9,0.48279]
[1760234007376,1.04505039,3725.0,3724.9,0.48279]
[1760234007577,0.70835039,3725.0,3724.6,0.3477]
[1760234007780,0.3367,3724.8,3724.7,0.48281]
[1760234007978,0.48284,3724.6,3724.4,0.00247911]
[1760234008181,0.3367,3724.5,3724.4,0.00247911]
[1760234008587,1.19222496,3724.5,3724.4,0.00247911]
[1760234008787,6.19222496,3724.5,3724.4,0.00247911]
[1760234009187,0.3367,3723.9,3723.3,0.483]
[1760234009487,0.3367,3723.7,3722.8,0.3477]
[1760234009688,0.3367,3723.4,3722.8,0.3477]
[1760234009886,0.95926543,3724.1,3723.4,0.3477]
[1760234010086,0.7075034,3724.0,3723.4,0.3477]
[1760234010392,0.3367,3724.3,3723.4,0.3477]
[1760234010393,0.0026794,3724.1,3723.6,0.48295]
[1760234010589,0.3367,3724.0,3723.6,0.83065]
[1760234010791,0.0026794,3724.1,3723.5,0.481]
[1760234010994,0.0026794,3724.1,3724.0,0.4809]
[1760234011491,0.0026794,3724.1,3724.0,5.4809]
[1760234011796,0.4842,3725.5,3724.8,0.83049]
[1760234012090,0.70661747,3725.4,3725.3,0.48274]
[1760234012278,0.70647786,3725.4,3724.7,0.48281]
[1760234012483,0.3367,3725.2,3724.8,0.4828]
[1760234012684,0.48281,3724.9,3724.3,0.48286]
[1760234012985,0.70658053,3724.8,3724.1,0.3477]
[1760234013187,0.33989358,3725.2,3724.8,0.4828]
[1760234013489,0.70651784,3725.1,3724.8,0.8305]
[1760234013687,0.3367,3725.1,3724.8,0.8305]
[1760234014585,0.00319358,3725.2,3725.1,0.3477]
[1760234015886,0.00319358,3725.2,3725.0,0.48277]
[1760234016085,0.3537,3725.1,3725.0,0.48277]
[1760234016283,0.00319358,3725.2,3724.8,0.4828]
[1760234016482,0.3537,3725.1,3724.9,0.81679]
[1760234016687,0.00319358,3725.2,3725.1,0.81677]
[1760234016991,0.00319358,3725.2,3724.7,0.48281]
[1760234017188,0.3537,3725.1,3724.9,0.48279]
[1760234017387,0.00319358,3725.2,3724.9,0.48279]
[1760234017687,0.1336,3725.0,3724.0,0.1337]
[1760234017994,0.3537,3724.9,3724.0,0.334]
[1760234018794,0.1336,3724.5,3724.1,0.48289]
[1760234018991,0.3537,3724.7,3723.6,1.2074]
[1760234019194,0.00319358,3725.2,3724.7,0.81682]
[1760234019490,0.3537,3725.1,3724.7,0.81682]
[1760234019691,0.3537,3725.1,3724.8,0.4828]
[1760234019893,0.00319358,3725.2,3724.8,0.4828]
[1760234020093,0.3537,3725.1,3724.8,0.4828]
[1760234020589,0.00319358,3725.2,3725.0,0.48277]
[1760234020792,0.00319358,3725.2,3725.1,0.334]
[1760234021993,0.3571,3726.5,3726.2,0.3519]
[1760234022196,0.3571,3726.9,3725.9,0.48266]
[1760234022390,0.3571,3726.9,3726.1,0.3519]
[1760234022592,0.3571,3727.4,3726.5,0.0884]
[1760234022793,0.1394,3727.5,3726.6,0.48257]
[1760234022992,0.3571,3727.2,3726.6,0.48465335]
[1760234023295,0.3571,3727.4,3726.8,0.48254]
[1760234023493,0.62431884,3727.5,3726.9,0.48253]
[1760234023694,0.3571,3727.4,3726.9,0.48253]
[1760234023992,0.14185884,3727.5,3726.9,0.48253]
[1760234024593,0.14185884,3727.5,3726.6,0.00208335]
[1760234024594,0.83959,3727.3,3726.7,0.48255]
[1760234025296,0.83959,3727.3,3726.6,0.00208335]
[1760234025297,0.3571,3726.9,3726.6,0.00208335]
[1760234025903,0.3571,3726.8,3726.6,0.00208335]
[1760234026396,0.3571,3726.1,3725.1,0.3519]
[1760234026598,0.3571,3725.9,3725.7,0.48268]
[1760234026794,0.1394,3726.0,3725.7,0.48268]
[1760234026995,0.1394,3726.0,3725.6,0.3519]
[1760234027189,0.3571,3725.9,3725.6,0.3519]
[1760234027396,0.3571,3725.9,3725.6,0.83764305]
[1760234027602,0.3571,3726.3,3725.7,0.3519]
[1760234028396,0.48255,3726.8,3725.7,0.3519]
[1760234028592,0.1394,3727.0,3725.7,0.3519]
[1760234028593,0.3571,3726.9,3725.7,0.3519]
[1760234028794,0.3571,3726.9,3725.9,1.20666]
[1760234029105,0.62193,3727.0,3726.4,0.48259]
[1760234029301,0.3571,3726.9,3726.2,0.48262]
[1760234029603,0.83966,3726.8,3726.2,0.48262]
[1760234029897,0.3571,3725.9,3725.6,0.00305305]
[1760234030507,0.83978,3725.8,3725.6,0.00305305]
[1760234031305,5.3571,3725.7,3725.6,0.00305305]
[1760234032007,0.3571,3724.9,3724.6,0.48283]
[1760234032301,0.3571,3724.9,3724.2,0.3519]
[1760234032902,0.3571,3724.9,3724.2,0.35451974]
[1760234033405,0.1394,3725.0,3724.5,0.48284]
[1760234033597,0.1394,3725.5,3724.7,0.83471]
[1760234033805,0.48274,3725.3,3724.7,0.83471]
[1760234034504,0.3571,3725.4,3724.7,0.3519]
[1760234034807,0.48274,3725.4,3724.9,0.48279]
[1760234035303,0.3571,3725.4,3724.2,0.00261974]
[1760234035497,0.3571,3725.4,3724.4,0.48285]
[1760234035696,0.3571,3724.3,3724.2,0.00261974]
[1760234035896,0.35936736,3724.3,3724.2,0.00261974]
[1760234040011,0.00226736,3724.3,3724.2,0.35451974]
[1760234040306,0.35936736,3724.3,3724.2,0.00261974]
[1760234040610,0.1394,3723.5,3723.4,0.48298]
[1760234040908,0.4965,3723.5,3723.4,0.48298]
[1760234041305,0.3571,3723.4,3722.6,1.20774]
[1760234041504,0.3571,3723.9,3723.1,0.48302]
[1760234041708,0.3571,3723.4,3722.8,0.3519]
[1760234042010,0.62238,3723.5,3722.2,0.3519]
[1760234042011,0.48301,3723.3,3722.2,0.3519]
[1760234042208,0.3571,3723.1,3722.8,0.48306]
[1760234042407,0.3571,3723.1,3722.2,0.3519]
[1760234042408,0.4965,3723.0,3722.7,0.48308]
[1760234042610,0.1394,3723.0,3722.8,0.48306]
[1760234042906,0.3571,3722.9,3722.8,0.48306]
[1760234043106,0.1394,3724.0,3723.3,0.483]
[1760234043303,0.1394,3723.5,3722.9,0.48305]
[1760234043604,0.1394,3723.5,3722.7,0.48307]
[1760234043804,0.3571,3722.9,3722.4,0.3519]
[1760234044004,0.3571,3722.9,3722.1,0.3519]
[1760234044213,0.3571,3723.4,3722.4,0.3519]
[1760234044405,0.3571,3723.4,3722.6,0.3519]
[1760234044600,0.3571,3723.9,3722.8,0.3519]
[1760234045110,0.00226736,3724.3,3722.5,0.1316]
[1760234045111,0.34286736,3724.3,3723.7,0.3645]
[1760234045412,0.00226736,3724.3,3724.0,0.4829]
[1760234045708,0.48514736,3724.3,3723.7,0.84744]
[1760234045910,0.3406,3724.2,3724.1,0.48289]
[1760234046117,0.00226736,3724.3,3724.1,0.84739]
[1760234046317,0.00226736,3724.3,3724.2,0.3645]
[1760234046712,0.3406,3725.1,3725.0,0.84728]
[1760234047017,2.64430269,3726.6,3724.3,1.20719]
[1760234047018,1.09396543,3726.5,3725.4,0.48273]
[1760234047314,0.3406,3725.9,3725.7,0.48268]
[1760234047709,0.34304331,3725.9,3725.7,0.48268]
[1760234048008,0.1347,3725.5,3724.6,0.3645]
[1760234048213,0.1347,3725.5,3725.0,0.48277]
[1760234048214,0.3406,3725.4,3725.0,0.48277]
[1760234048409,0.1347,3725.5,3725.1,0.48276]
[1760234048613,0.3406,3725.4,3725.1,0.48276]
[1760234048814,0.1347,3725.5,3724.6,0.3645]
[1760234049115,0.3406,3724.7,3724.0,0.3645]
[1760234049311,0.1347,3724.5,3723.5,0.1337]
[1760234049519,0.3406,3724.4,3724.2,0.36689758]
[1760234049915,0.3406,3724.9,3724.2,0.36689758]
[1760234050109,0.1347,3725.0,3724.2,0.36689758]
[1760234050425,0.3406,3724.7,3724.2,0.00239758]
[1760234050715,0.1347,3724.5,3724.2,0.48527758]
[1760234050918,0.3406,3724.4,3724.3,0.48286]
[1760234051110,0.3406,3724.4,3724.2,0.00239758]
[1760234051312,0.1347,3724.5,3724.2,0.00239758]
[1760234051814,0.3406,3724.4,3724.2,0.00239758]
[1760234052306,0.82347,3724.3,3724.2,0.00239758]
[1760234052710,0.3406,3724.2,3722.5,0.4978]
[1760234053018,0.3406,3723.2,3722.8,0.48306]
[1760234053220,0.48299,3723.4,3722.5,0.3645]
[1760234053221,0.3406,3723.4,3722.5,0.3645]
[1760234053523,0.3406,3723.2,3722.7,0.48307]
[1760234053816,0.34398405,3723.2,3722.5,0.3645]
[1760234054218,0.3406,3723.1,3722.5,0.3645]